[Event "Charlotte Spring GM Invitational 2021"]
[Site "Charlotte"]
[Date "2021.03.19"]
[Round "3.3"]
[White "Sinha, Sahil"]
[Black "Yip, Carissa"]
[Result "1-0"]
[ECO "E98"]
[WhiteElo "2353"]
[BlackElo "2423"]
[Annotator "ChessBase"]
[PlyCount "77"]
[EventDate "2021.03.17"]
[EventType "tourn"]
[EventCountry "USA"]
[SourceTitle "playchess.com"]
[Source "ChessBase"]
[SourceQuality "1"]
[TimeControl "5400+30"]

1. d4 {[%emt 0:00:00]} Nf6 {[%emt 0:00:00]} 2. c4 {[%emt 0:00:00]} g6 {[%emt 0:00:00]} 3. Nc3 {[%emt 0:00:00]} Bg7 {[%emt 0:00:00]} 4. e4 {[%emt 0:00:04]} d6 {[%emt 0:00:00]} 5. Be2 {[%emt 0:00:12]} O-O {[%emt 0:00:00]} 6. Nf3 {[%emt 0:00:07]} e5 {[%emt 0:00:05]} 7. O-O {[%emt 0:00:09]} Nc6 {[%emt 0:00:02]} 8. d5 {[%emt 0:00:07]} Ne7 {[%emt 0:00:05]} 9. Ne1 {[%emt 0:00:03]} Ne8 {[%emt 0:00:17]} 10. Be3 {[%emt 0:00:18]} f5 {[%emt 0:00:05]} 11. f3 {[%emt 0:00:04]} f4 {[%emt 0:00:03]} 12. Bf2 {[%emt 0:00:07]} g5 {[%emt 0:00:04]} 13. c5 {[%emt 0:00:10]} h5 {[%emt 0:00:28]} 14. a4 {[%emt 0:00:33]} Rf6 {[%emt 0:00:21]} 15. cxd6 {[%emt 0:02:04]} Nxd6 {[%emt 0:04:15]} 16. Nb5 {[%emt 0:01:16]} Rg6 {[%emt 0:01:11]} 17. Rc1 {[%emt 0:05:12]} Nxb5 {[%emt 0:02:58]} 18. axb5 {[%emt 0:00:05]} Bd7 {[%emt 0:02:11]} 19. Nd3 {[%emt 0:04:04]} b6 {[%emt 0:05:51]} 20. Qc2 {[%emt 0:03:23]} Rc8 {[%emt 0:00:54]} 21. Ra1 {[%emt 0:03:57]} g4 {[%emt 0:11:32]} 22. Bh4 {[%emt 0:01:05]} Qf8 {[%emt 0:09:59]} 23. Qc3 {[%emt 0:16:13]} Kh7 {[%emt 0:17:48]} 24. Nxe5 {[%emt 0:08:48]} Qh8 {[%emt 0:03:01]} 25. Nxg6 {[%emt 0:01:07]} Nxg6 {[%emt 0:00:05]} 26. Qe1 {[%emt 0:00:03]} g3 {[%emt 0:00:41]} 27. hxg3 {[%emt 0:06:05]} Nxh4 {[%emt 0:00:06]} 28. gxh4 {[%emt 0:00:05]} Bd4+ {[%emt 0:03:14]} 29. Rf2 {[%emt 0:01:17]} Be3 {[%emt 0:11:44]} 30. Qc3 {[%emt 0:10:11]} Qd8 {[%emt 0:00:27]} 31. e5 {[%emt 0:04:30]} Qxh4 {[%emt 0:02:40]} 32. Bd3+ {[%emt 0:02:00]} Kh6 {[%emt 0:07:39]} 33. Raf1 {[%emt 0:03:27]} Rg8 {[%emt 0:00:48]} 34. Qxc7 {[%emt 0:08:33]} Qe7 {[%emt 0:09:16]} 35. Bf5 {[%emt 0:03:11]} Rxg2+ {[%emt 0:02:38]} 36. Kxg2 {[%emt 0:01:30]} Qg5+ {[%emt 0:01:02]} 37. Kh1 {[%emt 0:00:34]} Bxf5 {[%emt 0:02:14]} 38. Rg1 {[%emt 0:03:22]} Bg4 {[%emt 0:00:05]} 39. Rxg4 {[%emt 0:00:45]} 1-0

[Event "Charlotte Spring GM Invitational 2021"]
[Site "Charlotte"]
[Date "2021.03.19"]
[Round "4.1"]
[White "Belous, Vladimir"]
[Black "Sinha, Sahil"]
[Result "1-0"]
[ECO "E49"]
[WhiteElo "2521"]
[BlackElo "2353"]
[Annotator "RC"]
[PlyCount "61"]
[EventDate "2021.03.17"]
[EventType "tourn"]
[EventCountry "USA"]
[SourceTitle "playchess.com"]
[Source "ChessBase"]
[SourceQuality "1"]
[TimeControl "5400+30"]

1. d4 {[%emt 0:00:00]} Nf6 {[%emt 0:00:29]} 2. c4 {[%emt 0:00:00]} e6 {[%emt 0:00:07]} 3. Nc3 {[%emt 0:00:00]} Bb4 {[%emt 0:00:31]} 4. f3 {[%emt 0:00:13]} d5 {[%emt 0:01:17]} 5. a3 {[%emt 0:00:06]} Bxc3+ {[%emt 0:01:20]} 6. bxc3 {[%emt 0:00:02]} O-O {[%emt 0:01:32]} 7. cxd5 {[%emt 0:01:58]} exd5 {[%emt 0:00:12]} 8. e3 {[%emt 0:00:27]} c5 {[%emt 0:00:39]} 9. Bd3 {[%emt 0:00:26]} b6 {[%emt 0:00:40]} 10. Ne2 {[%emt 0:00:13]} Ba6 {[%emt 0:00:51]} 11. Bxa6 {[%emt 0:00:12]} Nxa6 {[%emt 0:00:05]} 12. O-O {[%emt 0:00:04]} Re8 {[%emt 0:02:00]} 13. Ng3 {[%emt 0:00:33]} Nc7 {[%emt 0:02:56]} 14. Ra2 {[%emt 0:06:52]} Qd7 {[%emt 0:02:51]} 15. Raf2 {[%emt 0:06:48]} h5 {[%emt 0:05:07]} 16. e4 {[%emt 0:03:45]} g6 {[%emt 0:04:54]} 17. e5 {[%emt 0:05:58]} h4 {[%emt 0:00:49]} 18. exf6 {[%emt 0:02:15]} hxg3 {[%emt 0:00:12]} 19. hxg3 {[%emt 0:00:02]} Re6 {[%emt 0:22:43]} 20. Bg5 {[%emt 0:03:17]} Nb5 {[%emt 0:50:45]} 21. f4 {[%emt 0:07:20]} Re4 {[%emt 0:00:00]} 22. f5 {[%emt 0:03:47]} Nxc3 {[%emt 0:00:00]} 23. Qd3 {[%emt 0:01:06]} cxd4 {[%emt 0:00:00]} 24. g4 {[%emt 0:00:08]} Qe8 {[%emt 0:00:00]} 25. fxg6 {[%emt 0:01:26]} Re3 {[%emt 0:00:00]} 26. gxf7+ {[%emt 0:01:13]} Qxf7 {[%emt 0:00:00]} 27. Bxe3 {[%emt 0:00:07]} dxe3 {[%emt 0:00:00]} 28. Qxe3 {[%emt 0:00:27]} Ne4 {[%emt 0:00:00]} 29. Rf5 {[%emt 0:00:13]} Rc8 {[%emt 0:00:53]} 30. Qh6 {[%emt 0:00:29]} Rc6 {[%emt 0:01:25]} 31. Rh5 {[%emt 0:00:19]} 1-0

[Event "Charlotte Spring GM Invitational 2021"]
[Site "Charlotte"]
[Date "2021.03.19"]
[Round "4.2"]
[White "Ostrovskiy, Aleksandr"]
[Black "Gauri, Shankar"]
[Result "1/2-1/2"]
[ECO "C60"]
[WhiteElo "2431"]
[BlackElo "2353"]
[Annotator "NA"]
[PlyCount "44"]
[EventDate "2021.03.17"]
[EventType "tourn"]
[EventCountry "USA"]
[SourceTitle "playchess.com"]
[Source "ChessBase"]
[SourceQuality "1"]
[TimeControl "5400+30"]

1. e4 {[%emt 0:00:00]} e5 {[%emt 0:07:24]} 2. Nf3 {[%emt 0:00:00]} Nc6 {[%emt 0:00:05]} 3. Bb5 {[%emt 0:00:00]} g6 {[%emt 0:00:28]} 4. d4 {[%emt 0:07:04]} exd4 {[%emt 0:02:27]} 5. Bg5 {[%emt 0:00:27]} Be7 {[%emt 0:00:44]} 6. Bxe7 {[%emt 0:00:19]} Qxe7 {[%emt 0:00:23]} 7. Bxc6 {[%emt 0:00:05]} dxc6 {[%emt 0:00:27]} 8. Qxd4 {[%emt 0:00:05]} Nf6 {[%emt 0:01:22]} 9. Nc3 {[%emt 0:00:11]} Bg4 {[%emt 0:26:50]} 10. Nd2 {[%emt 0:08:16]} c5 {[%emt 0:10:26]} 11. Qe3 {[%emt 0:01:30]} O-O-O {[%emt 0:01:14]} 12. f3 {[%emt 0:08:01]} Bd7 {[%emt 0:07:36]} 13. O-O-O {[%emt 0:02:11]} Bc6 {[%emt 0:05:56]} 14. Nc4 {[%emt 0:14:34]} b6 {[%emt 0:01:09]} 15. Qg5 {[%emt 0:03:31]} Qe6 {[%emt 0:06:59]} 16. Qe5 {[%emt 0:17:49]} Rde8 {[%emt 0:03:47]} 17. Qxe6+ {[%emt 0:00:35]} Rxe6 {[%emt 0:00:02]} 18. Ne3 {[%emt 0:08:31]} Rhe8 {[%emt 0:04:57]} 19. Ned5 {[%emt 0:09:39]} h5 {[%emt 0:03:46]} 20. Nxf6 {[%emt 0:00:39]} Rxf6 {[%emt 0:00:02]} 21. h4 {[%emt 0:01:14]} Rfe6 {[%emt 0:00:47]} 22. Rh3 {[%emt 0:07:18]} Rd6 {[%emt 0:07:05]} 1/2-1/2

[Event "Charlotte Spring GM Invitational 2021"]
[Site "Charlotte"]
[Date "2021.03.19"]
[Round "4.4"]
[White "Wang, Kevin"]
[Black "Hilby, Craig"]
[Result "0-1"]
[ECO "C55"]
[WhiteElo "2402"]
[BlackElo "2454"]
[Annotator "RC"]
[PlyCount "154"]
[EventDate "2021.03.17"]
[EventType "tourn"]
[EventCountry "USA"]
[SourceTitle "playchess.com"]
[Source "ChessBase"]
[SourceQuality "1"]
[TimeControl "5400+30"]

1. e4 {[%emt 0:00:00]} e5 {[%emt 0:00:00]} 2. Nf3 {[%emt 0:00:00]} Nc6 {[%emt 0:00:00]} 3. Bc4 {[%emt 0:00:41]} Nf6 {[%emt 0:00:00]} 4. d3 {[%emt 0:00:37]} h6 {[%emt 0:00:17]} 5. c3 {[%emt 0:01:01]} d6 {[%emt 0:00:29]} 6. Nbd2 {[%emt 0:01:19]} g5 {[%emt 0:07:16]} 7. h4 {[%emt 0:01:33]} g4 {[%emt 0:01:19]} 8. Nh2 {[%emt 0:00:35]} h5 {[%emt 1:24:39]} 9. Qb3 {[%emt 1:28:44]} Rh7 {[%emt 0:00:00]} 10. Nhf1 {[%emt 0:00:00]} Na5 {[%emt 0:00:00]} 11. Qc2 {[%emt 0:01:00]} Nxc4 {[%emt 0:00:00]} 12. Nxc4 {[%emt 0:00:00]} Be6 {[%emt 0:00:00]} 13. Ng3 {[%emt 0:01:00]} Bxc4 {[%emt 0:00:00]} 14. dxc4 {[%emt 0:00:00]} Qd7 {[%emt 0:00:00]} 15. Bg5 {[%emt 0:00:00]} Ng8 {[%emt 0:00:00]} 16. O-O-O {[%emt 0:00:00]} Qc6 {[%emt 0:04:00]} 17. Qe2 {[%emt 0:00:00]} f6 {[%emt 0:00:00]} 18. Be3 {[%emt 0:00:00]} Ne7 {[%emt 0:01:00]} 19. f3 {[%emt 0:00:00]} Bh6 {[%emt 0:00:00]} 20. Bxh6 {[%emt 0:00:00]} Rxh6 {[%emt 0:00:00]} 21. fxg4 {[%emt 0:00:00]} hxg4 {[%emt 0:00:00]} 22. b3 {[%emt 0:00:00]} Kf7 {[%emt 0:00:00]} 23. Qxg4 {[%emt 0:00:00]} b5 {[%emt 0:00:00]} 24. c5 {[%emt 0:00:00]} Qxc5 {[%emt 0:00:00]} 25. Rd3 {[%emt 0:00:00]} Rg8 {[%emt 0:00:00]} 26. Qd7 {[%emt 0:00:00]} Qc6 {[%emt 0:00:00]} 27. Qh3 {[%emt 0:00:00]} b4 {[%emt 0:02:12]} 28. c4 {[%emt 0:00:00]} Ke8 {[%emt 0:02:48]} 29. Rf1 {[%emt 0:00:05]} Qd7 {[%emt 0:00:00]} 30. Nf5 {[%emt 0:02:51]} Nxf5 {[%emt 0:00:00]} 31. Rxf5 {[%emt 0:00:37]} Qg7 {[%emt 0:00:15]} 32. g3 {[%emt 0:04:07]} Rg6 {[%emt 0:01:45]} 33. Rf2 {[%emt 0:00:41]} Ke7 {[%emt 0:00:30]} 34. Qf5 {[%emt 0:02:09]} Rxg3 {[%emt 0:00:00]} 35. Rxg3 {[%emt 0:00:00]} Qxg3 {[%emt 0:01:00]} 36. Qxf6+ {[%emt 0:00:00]} Kd7 {[%emt 0:00:00]} 37. Qf7+ {[%emt 0:00:00]} Kc8 {[%emt 0:00:00]} 38. Rf1 {[%emt 0:00:16]} Qc3+ {[%emt 0:00:46]} 39. Kb1 {[%emt 0:00:14]} Qd3+ {[%emt 0:00:05]} 40. Kc1 {[%emt 0:00:11]} Qe3+ {[%emt 0:00:53]} 41. Kb1 {[%emt 0:01:01]} Qxe4+ {[%emt 0:00:07]} 42. Ka1 {[%emt 0:00:00]} Qd4+ {[%emt 0:00:07]} 43. Kb1 {[%emt 0:00:02]} Qd3+ {[%emt 0:00:38]} 44. Ka1 {[%emt 0:00:04]} Kb7 {[%emt 0:00:48]} 45. Qxg8 {[%emt 0:02:29]} Qxf1+ {[%emt 0:00:05]} 46. Kb2 {[%emt 0:00:00]} Qf2+ {[%emt 0:00:23]} 47. Kb1 {[%emt 0:00:07]} Qe1+ {[%emt 0:00:50]} 48. Kc2 {[%emt 0:00:13]} Qf2+ {[%emt 0:00:48]} 49. Kb1 {[%emt 0:00:03]} Qxh4 {[%emt 0:00:31]} 50. Qd5+ {[%emt 0:00:07]} Kc8 {[%emt 0:00:02]} 51. Qa8+ {[%emt 0:01:19]} Kd7 {[%emt 0:00:01]} 52. Qxa7 {[%emt 0:00:03]} Qe1+ {[%emt 0:00:15]} 53. Kb2 {[%emt 0:00:27]} Qd2+ {[%emt 0:00:11]} 54. Kb1 {[%emt 0:00:03]} Qd1+ {[%emt 0:00:04]} 55. Kb2 {[%emt 0:00:01]} Qd4+ {[%emt 0:00:36]} 56. Qxd4 {[%emt 0:00:03]} exd4 {[%emt 0:00:02]} 57. a3 {[%emt 0:00:12]} bxa3+ {[%emt 0:00:13]} 58. Kxa3 {[%emt 0:00:02]} c5 {[%emt 0:02:06]} 59. b4 {[%emt 0:00:09]} cxb4+ {[%emt 0:00:47]} 60. Kxb4 {[%emt 0:00:02]} Kc6 {[%emt 0:02:12]} 61. Ka4 {[%emt 0:00:14]} Kc5 {[%emt 0:00:00]} 62. Kb3 {[%emt 0:00:01]} d3 {[%emt 0:00:00]} 63. Kc3 {[%emt 0:00:02]} d2 {[%emt 0:00:00]} 64. Kxd2 {[%emt 0:00:02]} Kxc4 {[%emt 0:02:00]} 65. Kc2 {[%emt 0:00:04]} Kd4 {[%emt 0:00:00]} 66. Kd1 {[%emt 0:00:02]} Kd3 {[%emt 0:00:00]} 67. Kc1 {[%emt 0:00:02]} d5 {[%emt 0:00:00]} 68. Kd1 {[%emt 0:00:03]} d4 {[%emt 0:00:00]} 69. Kc1 {[%emt 0:00:01]} Ke2 {[%emt 0:00:00]} 70. Kc2 {[%emt 0:00:03]} d3+ {[%emt 0:00:00]} 71. Kb2 {[%emt 0:00:30]} d2 {[%emt 0:00:00]} 72. Ka2 {[%emt 0:00:30]} d1=Q {[%emt 0:00:00]} 73. Kb2 {[%emt 0:00:30]} Qd3 {[%emt 0:00:00]} 74. Ka1 {[%emt 0:00:30]} Qb5 {[%emt 0:00:00]} 75. Ka2 {[%emt 0:00:30]} Kd2 {[%emt 0:00:14]} 76. Ka1 {[%emt 0:00:30]} Kc2 {[%emt 0:00:30]} 77. Ka2 {[%emt 0:00:30]} Qa5# {[%emt 0:00:30]} 0-1

[Event "Charlotte Spring GM Invitational 2021"]
[Site "Charlotte"]
[Date "2021.03.19"]
[Round "4.5"]
[White "Ringoir, Tanguy"]
[Black "Mishra, Abhimanyu"]
[Result "1/2-1/2"]
[ECO "D23"]
[WhiteElo "2474"]
[BlackElo "2370"]
[Annotator "ChessBase"]
[PlyCount "46"]
[EventDate "2021.03.17"]
[EventType "tourn"]
[EventCountry "USA"]
[SourceTitle "playchess.com"]
[Source "ChessBase"]
[SourceQuality "1"]
[TimeControl "5400+30"]

1. d4 {[%emt 0:00:40]} d5 {[%emt 0:00:00]} 2. c4 {[%emt 0:00:06]} c6 {[%emt 0:00:00]} 3. Nf3 {[%emt 0:00:04]} Nf6 {[%emt 0:00:00]} 4. Qb3 {[%emt 0:00:01]} dxc4 {[%emt 0:00:50]} 5. Qxc4 {[%emt 0:00:02]} Bf5 {[%emt 0:00:01]} 6. g3 {[%emt 0:00:03]} e6 {[%emt 0:01:17]} 7. Bg2 {[%emt 0:00:02]} Be7 {[%emt 0:01:10]} 8. O-O {[%emt 0:00:02]} O-O {[%emt 0:00:50]} 9. e3 {[%emt 0:00:02]} Nbd7 {[%emt 0:01:15]} 10. Rd1 {[%emt 0:00:01]} Rc8 {[%emt 0:04:20]} 11. Qe2 {[%emt 0:00:06]} Bg6 {[%emt 0:00:44]} 12. Nc3 {[%emt 0:03:00]} b5 {[%emt 0:01:03]} 13. h3 {[%emt 0:14:52]} b4 {[%emt 1:25:00]} 14. Na4 {[%emt 0:03:34]} Qa5 {[%emt 0:00:00]} 15. b3 {[%emt 0:00:19]} c5 {[%emt 0:00:00]} 16. a3 {[%emt 0:06:41]} Qc7 {[%emt 0:00:00]} 17. dxc5 {[%emt 0:09:49]} Nxc5 {[%emt 0:00:00]} 18. Nxc5 {[%emt 0:00:09]} Bxc5 {[%emt 0:00:00]} 19. axb4 {[%emt 0:00:21]} Bxb4 {[%emt 0:00:00]} 20. Bd2 {[%emt 0:02:55]} Bxd2 {[%emt 0:00:00]} 21. Qxd2 {[%emt 0:02:10]} Rfd8 {[%emt 0:00:00]} 22. Qa2 {[%emt 0:01:39]} Rxd1+ {[%emt 0:00:00]} 23. Rxd1 {[%emt 0:00:02]} Qc5 {[%emt 0:00:00]} 1/2-1/2

[Event "Charlotte Spring GM Invitational 2021"]
[Site "Charlotte"]
[Date "2021.03.20"]
[Round "6.3"]
[White "Wang, Kevin"]
[Black "Ostrovskiy, Aleksandr"]
[Result "1/2-1/2"]
[ECO "B10"]
[WhiteElo "2402"]
[BlackElo "2431"]
[Annotator "NA"]
[PlyCount "39"]
[EventDate "2021.03.17"]
[EventType "tourn"]
[EventCountry "USA"]
[SourceTitle "playchess.com"]
[Source "ChessBase"]
[SourceQuality "1"]
[TimeControl "5400+30"]

1. e4 {[%emt 0:00:00]} c6 {[%emt 0:00:00]} 2. Nf3 {[%emt 0:00:00]} d5 {[%emt 0:00:00]} 3. d3 {[%emt 0:00:26]} dxe4 {[%emt 0:03:43]} 4. dxe4 {[%emt 0:00:35]} Qxd1+ {[%emt 0:00:16]} 5. Kxd1 {[%emt 0:00:06]} Nf6 {[%emt 0:00:03]} 6. Nfd2 {[%emt 0:00:28]} g5 {[%emt 0:01:27]} 7. a4 {[%emt 0:00:53]} Rg8 {[%emt 0:03:24]} 8. Nc3 {[%emt 0:02:39]} Nbd7 {[%emt 0:05:49]} 9. f3 {[%emt 0:07:06]} g4 {[%emt 0:06:10]} 10. Nc4 {[%emt 0:03:17]} e5 {[%emt 0:11:50]} 11. Be3 {[%emt 0:06:33]} gxf3 {[%emt 0:05:55]} 12. gxf3 {[%emt 0:00:48]} Nh5 {[%emt 0:00:32]} 13. Bh3 {[%emt 0:12:41]} Nb6 {[%emt 0:32:19]} 14. Nxb6 {[%emt 0:09:47]} axb6 {[%emt 0:00:25]} 15. Bxc8 {[%emt 0:00:14]} Rxc8 {[%emt 0:00:02]} 16. Rg1 {[%emt 0:02:28]} Rxg1+ {[%emt 0:03:54]} 17. Bxg1 {[%emt 0:00:21]} Rd8+ {[%emt 0:03:49]} 18. Ke1 {[%emt 0:01:39]} Bc5 {[%emt 0:00:18]} 19. Bxc5 {[%emt 0:02:00]} bxc5 {[%emt 0:00:04]} 20. Ne2 {[%emt 0:06:14]} 1/2-1/2

[Event "Charlotte Spring GM Invitational 2021"]
[Site "Charlotte"]
[Date "2021.03.20"]
[Round "7.4"]
[White "Sinha, Sahil"]
[Black "Wang, Kevin"]
[Result "1/2-1/2"]
[ECO "D39"]
[WhiteElo "2324"]
[BlackElo "2402"]
[Annotator "ChessBase"]
[PlyCount "50"]
[EventDate "2021.03.17"]
[EventType "tourn"]
[EventCountry "USA"]
[SourceTitle "playchess.com"]
[Source "ChessBase"]
[SourceQuality "1"]
[TimeControl "5400+30"]

1. d4 {[%emt 0:00:00]} d5 {[%emt 0:00:33]} 2. c4 {[%emt 0:00:00]} e6 {[%emt 0:00:21]} 3. Nc3 {[%emt 0:00:01]} Bb4 {[%emt 0:00:29]} 4. Nf3 {[%emt 0:01:08]} Nf6 {[%emt 0:00:32]} 5. Bg5 {[%emt 0:01:34]} dxc4 {[%emt 0:00:50]} 6. e4 {[%emt 0:01:39]} c5 {[%emt 0:00:55]} 7. Bxc4 {[%emt 0:03:17]} cxd4 {[%emt 0:00:36]} 8. Nxd4 {[%emt 0:01:43]} Qa5 {[%emt 0:00:43]} 9. Bd2 {[%emt 0:01:52]} Qc5 {[%emt 0:01:41]} 10. Bb5+ {[%emt 0:01:17]} Bd7 {[%emt 0:00:40]} 11. Nb3 {[%emt 0:00:34]} Qe7 {[%emt 0:00:35]} 12. Bd3 {[%emt 0:02:03]} Nc6 {[%emt 0:00:33]} 13. a3 {[%emt 0:01:18]} Bd6 {[%emt 0:01:32]} 14. Rc1 {[%emt 0:01:56]} O-O {[%emt 0:04:32]} 15. Bg5 {[%emt 0:05:07]} Rad8 {[%emt 0:14:25]} 16. f4 {[%emt 0:04:48]} h6 {[%emt 0:03:06]} 17. e5 {[%emt 0:03:04]} Bxe5 {[%emt 0:02:15]} 18. fxe5 {[%emt 0:00:24]} Nxe5 {[%emt 0:00:11]} 19. Bf4 {[%emt 0:00:38]} Bb5 {[%emt 0:13:54]} 20. Bxb5 {[%emt 0:07:28]} Rxd1+ {[%emt 0:00:28]} 21. Rxd1 {[%emt 0:00:03]} Qc7 {[%emt 0:01:23]} 22. Rd4 {[%emt 0:01:55]} g5 {[%emt 0:11:14]} 23. Bg3 {[%emt 0:02:17]} Nh5 {[%emt 0:00:59]} 24. Bxe5 {[%emt 0:00:57]} Qxe5+ {[%emt 0:00:29]} 25. Re4 {[%emt 0:00:12]} Qc7 {[%emt 0:39:34]} 1/2-1/2

[Event "Charlotte Spring GM Invitational 2021"]
[Site "Charlotte"]
[Date "2021.03.20"]
[Round "7.5"]
[White "Ostrovskiy, Aleksandr"]
[Black "Yip, Carissa"]
[Result "0-1"]
[ECO "C84"]
[WhiteElo "2431"]
[BlackElo "2423"]
[Annotator "ChessBase"]
[PlyCount "121"]
[EventDate "2021.03.17"]
[EventType "tourn"]
[EventCountry "USA"]
[SourceTitle "playchess.com"]
[Source "ChessBase"]
[SourceQuality "1"]
[TimeControl "5400+30"]

1. e4 {[%emt 0:00:00]} e5 {[%emt 0:07:14]} 2. Nf3 {[%emt 0:00:00]} Nc6 {[%emt 0:00:05]} 3. Bb5 {[%emt 0:00:45]} a6 {[%emt 0:00:06]} 4. Ba4 {[%emt 0:00:07]} Nf6 {[%emt 0:00:16]} 5. O-O {[%emt 0:00:13]} Be7 {[%emt 0:00:14]} 6. d3 {[%emt 0:00:17]} d6 {[%emt 0:00:35]} 7. c4 {[%emt 0:04:43]} Bd7 {[%emt 0:03:40]} 8. Be3 {[%emt 0:04:41]} O-O {[%emt 0:01:37]} 9. h3 {[%emt 0:06:04]} Re8 {[%emt 0:02:01]} 10. Nc3 {[%emt 0:02:25]} Bf8 {[%emt 0:00:08]} 11. Rc1 {[%emt 0:06:40]} g6 {[%emt 0:01:33]} 12. Nd5 {[%emt 0:00:42]} Bg7 {[%emt 0:00:47]} 13. Bg5 {[%emt 0:09:41]} Nb8 {[%emt 0:03:19]} 14. Bxd7 {[%emt 0:12:04]} Nbxd7 {[%emt 0:00:06]} 15. Re1 {[%emt 0:04:22]} c6 {[%emt 0:00:54]} 16. Nc3 {[%emt 0:03:53]} Nc5 {[%emt 0:04:36]} 17. Be3 {[%emt 0:14:37]} Ne6 {[%emt 0:03:01]} 18. d4 {[%emt 0:06:01]} exd4 {[%emt 0:02:05]} 19. Nxd4 {[%emt 0:00:38]} Nc5 {[%emt 0:01:17]} 20. f3 {[%emt 0:00:51]} Nfd7 {[%emt 0:00:44]} 21. b4 {[%emt 0:00:39]} Ne6 {[%emt 0:00:05]} 22. Nxe6 {[%emt 0:00:09]} Rxe6 {[%emt 0:00:06]} 23. Ne2 {[%emt 0:01:19]} Qc7 {[%emt 0:07:17]} 24. Qd2 {[%emt 0:00:51]} Rd8 {[%emt 0:03:39]} 25. Red1 {[%emt 0:01:01]} Ne5 {[%emt 0:04:03]} 26. a4 {[%emt 0:02:58]} Rde8 {[%emt 0:15:15]} 27. Nd4 {[%emt 0:07:50]} R6e7 {[%emt 0:00:21]} 28. Nb3 {[%emt 0:01:46]} Qc8 {[%emt 0:09:17]} 29. Bg5 {[%emt 0:06:50]} f6 {[%emt 0:00:04]} 30. Bf4 {[%emt 0:01:39]} f5 {[%emt 0:00:21]} 31. exf5 {[%emt 0:00:59]} Qxf5 {[%emt 0:00:09]} 32. Nd4 {[%emt 0:00:31]} Qf7 {[%emt 0:00:27]} 33. Bg5 {[%emt 0:00:35]} Nxc4 {[%emt 0:01:19]} 34. Qc3 {[%emt 0:00:38]} Ne3 {[%emt 0:00:58]} 35. Rd3 {[%emt 0:00:28]} Nd5 {[%emt 0:00:42]} 36. Qd2 {[%emt 0:00:02]} Re5 {[%emt 0:00:49]} 37. b5 {[%emt 0:00:57]} Rxg5 {[%emt 0:01:06]} 38. Qxg5 {[%emt 0:00:29]} Nf4 {[%emt 0:00:01]} 39. Rcd1 {[%emt 0:00:17]} Nxd3 {[%emt 0:05:07]} 40. Rxd3 {[%emt 0:00:02]} Qc4 {[%emt 0:00:02]} 41. Qd2 {[%emt 0:00:02]} Qxa4 {[%emt 0:00:04]} 42. bxc6 {[%emt 0:00:24]} bxc6 {[%emt 0:00:07]} 43. Ne2 {[%emt 0:01:49]} Qa1+ {[%emt 0:01:01]} 44. Kh2 {[%emt 0:00:30]} Qe5+ {[%emt 0:00:05]} 45. Ng3 {[%emt 0:00:02]} d5 {[%emt 0:00:04]} 46. f4 {[%emt 0:00:01]} Qb2 {[%emt 0:03:23]} 47. Qd1 {[%emt 0:00:02]} a5 {[%emt 0:02:15]} 48. Rb3 {[%emt 0:00:14]} Qd4 {[%emt 0:00:55]} 49. Qg4 {[%emt 0:00:03]} a4 {[%emt 0:08:38]} 50. Rb7 {[%emt 0:00:01]} a3 {[%emt 0:00:06]} 51. Qd7 {[%emt 0:00:09]} Ra8 {[%emt 0:01:47]} 52. Qxc6 {[%emt 0:01:48]} a2 {[%emt 0:00:20]} 53. Rxg7+ {[%emt 0:02:05]} Kxg7 {[%emt 0:00:13]} 54. Qb7+ {[%emt 0:00:26]} Kh6 {[%emt 0:00:20]} 55. Qxa8 {[%emt 0:00:13]} a1=Q {[%emt 0:00:08]} 56. Qf8+ {[%emt 0:00:38]} Qg7 {[%emt 0:00:01]} 57. Qd8 {[%emt 0:00:29]} Qgf6 {[%emt 0:00:22]} 58. Qxd5 {[%emt 0:00:49]} Qxf4 {[%emt 0:01:00]} 59. Qd8 {[%emt 0:00:30]} Qae5 {[%emt 0:00:29]} 60. Qd3 {[%emt 0:00:22]} Qfe3 {[%emt 0:00:19]} 61. Qxg6+ {[%emt 0:00:37]} 0-1

[Event "Charlotte Spring GM Invitational 2021"]
[Site "Charlotte"]
[Date "2021.03.21"]
[Round "8.1"]
[White "Belous, Vladimir"]
[Black "Ostrovskiy, Aleksandr"]
[Result "1-0"]
[ECO "D78"]
[WhiteElo "2521"]
[BlackElo "2431"]
[Annotator "RC"]
[PlyCount "63"]
[EventDate "2021.03.17"]
[EventType "tourn"]
[EventCountry "USA"]
[SourceTitle "playchess.com"]
[Source "ChessBase"]
[SourceQuality "1"]
[TimeControl "5400+30"]

1. c4 {[%emt 0:00:00]} c6 {[%emt 0:00:00]} 2. d4 {[%emt 0:01:10]} d5 {[%emt 0:00:00]} 3. Nf3 {[%emt 0:00:05]} Nf6 {[%emt 0:00:00]} 4. Nc3 {[%emt 0:00:51]} dxc4 {[%emt 0:00:00]} 5. g3 {[%emt 0:00:14]} Nbd7 {[%emt 0:02:22]} 6. Bg2 {[%emt 0:01:21]} g6 {[%emt 0:00:16]} 7. a4 {[%emt 0:04:37]} a5 {[%emt 0:01:16]} 8. O-O {[%emt 0:00:28]} Bg7 {[%emt 0:00:03]} 9. e4 {[%emt 0:01:06]} O-O {[%emt 0:01:30]} 10. Qe2 {[%emt 0:04:34]} Nb6 {[%emt 0:04:51]} 11. h3 {[%emt 0:00:21]} Nfd7 {[%emt 0:05:11]} 12. Bg5 {[%emt 0:10:31]} Re8 {[%emt 0:04:31]} 13. Rad1 {[%emt 0:05:34]} Qc7 {[%emt 0:02:19]} 14. g4 {[%emt 0:07:32]} e5 {[%emt 0:03:25]} 15. d5 {[%emt 0:00:56]} Nc5 {[%emt 0:23:52]} 16. Nd2 {[%emt 0:07:12]} Ncxa4 {[%emt 0:02:38]} 17. Nxa4 {[%emt 0:00:13]} Nxa4 {[%emt 0:00:02]} 18. Nxc4 {[%emt 0:00:46]} cxd5 {[%emt 0:12:49]} 19. exd5 {[%emt 0:00:20]} e4 {[%emt 0:02:46]} 20. d6 {[%emt 0:02:32]} Qc6 {[%emt 0:02:41]} 21. Be7 {[%emt 0:06:09]} f5 {[%emt 0:09:35]} 22. Rc1 {[%emt 0:01:01]} Qb5 {[%emt 0:02:47]} 23. gxf5 {[%emt 0:02:32]} gxf5 {[%emt 0:08:12]} 24. Qh5 {[%emt 0:00:32]} Bd7 {[%emt 0:01:10]} 25. Kh1 {[%emt 0:02:27]} Rac8 {[%emt 0:06:29]} 26. Rg1 {[%emt 0:00:27]} Qd5 {[%emt 0:01:50]} 27. Bf3 {[%emt 0:01:07]} Qe6 {[%emt 0:02:06]} 28. Qg5 {[%emt 0:07:36]} Qg6 {[%emt 0:00:14]} 29. Bh5 {[%emt 0:00:05]} Qxg5 {[%emt 0:00:16]} 30. Rxg5 {[%emt 0:00:05]} h6 {[%emt 0:01:10]} 31. Rxg7+ {[%emt 0:00:18]} Kxg7 {[%emt 0:00:03]} 32. Rg1+ {[%emt 0:00:05]} 1-0